bitfinex/quotes_BTCUSD_20250115
["timestamp","ask_amount","ask_price","bid_price","bid_amount"]
[1736904070778,0.00049514,97088.0,97087.0,0.27531289]
[1736904072781,0.00228771,97088.0,97087.0,0.27531289]
[1736904075684,0.00228771,97088.0,97087.0,0.26831289]
[1736904075855,0.00228771,97088.0,97087.0,0.27631289]
[1736904076276,0.00228771,97088.0,97087.0,0.27331289]
[1736904076642,0.00228771,97088.0,97087.0,0.27631289]
[1736904081058,0.00228771,97088.0,97087.0,0.27331289]
[1736904081290,0.00228771,97088.0,97087.0,0.27631289]
[1736904081649,0.00228771,97088.0,97087.0,0.26831289]
[1736904082002,0.00228771,97088.0,97087.0,0.27631289]
[1736904082203,0.00228771,97088.0,97087.0,0.26831289]
[1736904082645,0.00228771,97088.0,97087.0,0.27331289]
[1736904083054,0.00228771,97088.0,97087.0,0.27631289]
[1736904085019,0.00228771,97088.0,97087.0,0.26831289]
[1736904085229,0.00228771,97088.0,97087.0,0.27631289]
[1736904085821,0.00228771,97088.0,97087.0,0.27331289]
[1736904086044,0.00228771,97088.0,97087.0,0.26831289]
[1736904086264,0.00228771,97088.0,97087.0,0.27331289]
[1736904086483,0.00228771,97088.0,97087.0,0.26531289]
[1736904086894,0.00228771,97088.0,97087.0,0.27631289]
[1736904087261,0.00228771,97088.0,97087.0,0.27331289]
[1736904087464,0.00228771,97088.0,97087.0,0.16908597]
[1736904087665,0.00228771,97088.0,97087.0,0.0793923]
[1736904087874,0.10670192,97088.0,97087.0,0.0793923]
[1736904088933,0.07958771,97088.0,97087.0,0.0713923]
[1736904089140,0.07958771,97088.0,97087.0,0.0693923]
[1736904089257,0.07958771,97088.0,97087.0,0.0753923]
[1736904089862,0.07958771,97088.0,97087.0,0.0693923]
[1736904094167,0.07958771,97088.0,97086.0,0.0693923]
[1736904094168,0.206,97087.0,97086.0,0.0693923]
[1736904094374,0.29130584,97087.0,97086.0,0.0693923]
[1736904095794,0.206,97087.0,97086.0,0.0693923]
[1736904103398,0.21192,97087.0,97086.0,0.0693923]
[1736904104437,0.206,97087.0,97086.0,0.0693923]
[1736904104646,0.21192,97087.0,97086.0,0.0693923]
[1736904104847,0.00592,97087.0,97086.0,0.0693923]
[1736904105234,0.00592,97087.0,97082.0,0.09169367]
[1736904105235,0.00228771,97088.0,97087.0,0.0693923]
[1736904105498,0.00228771,97088.0,97087.0,0.26531289]
[1736904106061,0.00228771,97088.0,97087.0,0.34301289]
[1736904106260,0.00228771,97088.0,97087.0,0.44301289]
[1736904106464,0.00228771,97088.0,97087.0,0.74171289]
[1736904106624,0.00228771,97088.0,97087.0,0.79773855]
[1736904107655,0.00228771,97088.0,97087.0,0.80990264]
[1736904108066,0.00228771,97088.0,97087.0,1.12960264]
[1736904108214,7.1e-07,97088.0,97087.0,1.14460264]
[1736904108424,0.00179319,97091.0,97090.0,0.51108597]
[1736904108636,0.00179319,97091.0,97090.0,0.77712309]
[1736904109515,0.00179319,97091.0,97090.0,1.01763747]
[1736904109975,0.00179319,97091.0,97090.0,1.00863747]
[1736904111336,0.00179319,97091.0,97090.0,0.78612309]
[1736904111587,0.00179319,97091.0,97090.0,0.79312309]
[1736904111956,0.00179319,97091.0,97090.0,0.78612309]
[1736904112173,0.00179319,97091.0,97090.0,0.78512309]
[1736904112374,0.00179319,97091.0,97090.0,1.3042812]
[1736904112610,1.9e-07,97091.0,97090.0,1.3272812]
[1736904112775,0.00179257,97140.0,97125.0,0.16108597]
[1736904113023,0.00179257,97140.0,97125.0,0.49985149]
[1736904113212,0.01614893,97138.0,97125.0,0.49985149]
[1736904113423,0.00179257,97140.0,97125.0,0.49985149]
[1736904114254,0.00179257,97140.0,97125.0,0.50000005]
[1736904114637,0.00179257,97140.0,97125.0,0.50400005]
[1736904114835,0.00179257,97140.0,97125.0,0.50000005]
[1736904115247,0.00179257,97140.0,97125.0,0.50900005]
[1736904115455,0.00179257,97140.0,97125.0,0.51300005]
[1736904116677,0.00179257,97140.0,97125.0,0.48438145]
[1736904117826,0.00179257,97140.0,97125.0,0.27846145]
[1736904118030,0.0809,97129.0,97125.0,0.27846145]
[1736904118592,0.0927977,97129.0,97125.0,0.27846145]
[1736904119724,0.0809,97137.0,97125.0,0.27846145]
[1736904119932,0.01174307,97135.0,97125.0,0.27846145]
[1736904120573,0.01174307,97135.0,97125.0,0.27446145]
[1736904120770,0.01174307,97135.0,97125.0,0.26946145]
[1736904121008,0.01174307,97135.0,97125.0,0.27846145]
[1736904121232,0.00179257,97140.0,97125.0,0.27846145]
[1736904121430,0.01178023,97137.0,97125.0,0.27846145]
[1736904123091,0.00179257,97140.0,97125.0,0.27846145]
[1736904123825,0.00179257,97140.0,97125.0,0.26546145]
[1736904124006,0.00179257,97140.0,97125.0,0.27846145]
[1736904124509,0.00130703,97136.0,97135.0,0.0693923]
[1736904125008,0.00130703,97136.0,97135.0,0.2092058]
[1736904125745,0.00130703,97136.0,97135.0,0.2142058]
[1736904126376,0.00130703,97136.0,97135.0,0.31843272]
[1736904126743,0.00130703,97136.0,97135.0,0.27031289]
[1736904126950,0.00130703,97136.0,97135.0,0.27231289]
[1736904127336,0.00130703,97136.0,97135.0,0.26731289]
[1736904127742,0.00130703,97136.0,97135.0,0.27431289]
[1736904128181,0.00130703,97136.0,97135.0,0.27831289]
[1736904130064,0.00130703,97136.0,97135.0,0.27431289]
[1736904130475,0.00130703,97136.0,97135.0,0.26931289]
[1736904130961,0.00130703,97136.0,97135.0,0.27431289]
[1736904131163,0.00130703,97136.0,97135.0,0.26531289]
[1736904131393,0.00130703,97136.0,97135.0,0.27431289]
[1736904131901,0.00130703,97136.0,97135.0,0.27931289]
[1736904132798,0.00130703,97136.0,97135.0,0.27031289]
[1736904133251,0.00130703,97136.0,97135.0,0.37031289]
[1736904133455,0.00130703,97136.0,97135.0,0.36531289]
[1736904133658,0.00130703,97136.0,97135.0,0.37031289]
[1736904134143,0.00130703,97136.0,97135.0,0.61531289]
[1736904134386,0.00130703,97136.0,97135.0,0.75681289]
[1736904134674,0.00130703,97136.0,97135.0,0.75381289]
[1736904134861,0.00130703,97136.0,97135.0,0.77450309]
[1736904135081,0.00130703,97136.0,97135.0,0.75950309]
[1736904135278,0.00130703,97136.0,97135.0,0.76550309]
[1736904135517,0.00130703,97136.0,97135.0,0.77450309]
[1736904135699,0.00130703,97136.0,97135.0,0.76550309]
[1736904136237,0.00130703,97136.0,97135.0,0.77450309]
[1736904137200,0.00130703,97136.0,97135.0,0.76850309]
[1736904137369,0.00130703,97136.0,97135.0,0.77550309]
[1736904139413,0.00179235,97157.0,97135.0,0.77550309]
[1736904139414,0.00179235,97157.0,97149.0,0.79395497]
[1736904139640,0.00179235,97157.0,97149.0,0.94428189]
[1736904140200,5.7e-07,97150.0,97149.0,0.96728189]
[1736904140862,5.7e-07,97150.0,97149.0,1.27608189]
[1736904141060,5.7e-07,97150.0,97149.0,1.28108189]
[1736904141276,5.7e-07,97150.0,97149.0,1.29008189]
[1736904141432,5.7e-07,97150.0,97149.0,1.28108189]
[1736904141632,5.7e-07,97150.0,97149.0,1.60178189]
[1736904141840,5.7e-07,97150.0,97149.0,1.61878189]
[1736904142230,5.7e-07,97150.0,97149.0,1.63059457]
[1736904142642,0.00179299,97182.0,97181.0,0.16108597]
[1736904142822,0.01980728,97240.0,97188.0,0.16108597]
[1736904142823,0.0826,97199.0,97188.0,0.16108597]
[1736904143036,0.0826,97199.0,97188.0,0.47109889]
[1736904143255,0.0004,97199.0,97188.0,0.77977889]
[1736904143499,0.0004,97199.0,97188.0,0.87977889]
[1736904143917,0.00228894,97189.0,97188.0,0.87977889]
[1736904144324,0.00228894,97189.0,97188.0,0.88477889]
[1736904144746,0.00228894,97189.0,97188.0,0.87977889]
[1736904145094,0.00228894,97189.0,97188.0,0.89377889]
[1736904145875,0.00228894,97189.0,97188.0,1.07077889]
[1736904146815,0.00228894,97189.0,97188.0,1.06177889]
[1736904146989,0.00228894,97189.0,97188.0,1.05677889]
[1736904147203,0.00228894,97189.0,97188.0,1.06577889]
[1736904147428,0.00228894,97189.0,97188.0,1.07077889]
[1736904147600,0.00228894,97189.0,97188.0,1.24377889]
[1736904147801,0.00228894,97189.0,97188.0,1.28487889]
[1736904148207,0.00228894,97189.0,97188.0,1.29087889]
[1736904148413,0.00228894,97189.0,97188.0,1.28187889]
[1736904148618,0.00228894,97189.0,97188.0,1.27587889]
[1736904148885,0.00228894,97189.0,97188.0,1.28487889]
[1736904149114,0.00228894,97189.0,97188.0,1.29187889]
[1736904150289,0.00228894,97189.0,97188.0,1.26887889]
[1736904151474,0.00228894,97189.0,97188.0,1.59457889]
[1736904153574,0.00228894,97189.0,97188.0,1.27978522]
[1736904153787,0.00228894,97189.0,97188.0,1.47147889]
[1736904161621,0.00228894,97189.0,97188.0,1.49447889]
[1736904167550,0.00228894,97189.0,97188.0,1.47147889]
[1736904167941,0.00228894,97189.0,97188.0,1.49447889]
[1736904168088,9.4e-07,97189.0,97188.0,1.57267889]
[1736904169142,9.4e-07,97199.0,97198.0,1.12075097]
[1736904169345,9.4e-07,97199.0,97198.0,1.24797789]
[1736904169526,9.4e-07,97199.0,97198.0,1.55662789]
[1736904170751,9.4e-07,97199.0,97198.0,1.56462789]
[1736904171558,9.4e-07,97199.0,97198.0,1.57362789]
[1736904171755,9.4e-07,97199.0,97198.0,1.38193422]
[1736904171960,9.4e-07,97199.0,97198.0,1.49542789]
[1736904172831,9.4e-07,97199.0,97198.0,1.48742789]
[1736904172984,9.4e-07,97199.0,97198.0,1.49542789]
[1736904173684,9.4e-07,97199.0,97198.0,1.48642789]
[1736904173875,9.4e-07,97199.0,97198.0,1.49542789]
[1736904175094,9.4e-07,97199.0,97198.0,1.50707894]
[1736904175300,9.4e-07,97199.0,97198.0,1.53903733]
[1736904178164,9.4e-07,97199.0,97198.0,1.63037201]
[1736904178391,9.4e-07,97199.0,97198.0,1.62137201]
[1736904178577,9.4e-07,97199.0,97198.0,1.63037201]
[1736904179009,9.4e-07,97199.0,97198.0,1.67603936]
[1736904179218,9.4e-07,97199.0,97198.0,1.66803936]
[1736904179416,0.00085404,97199.0,97198.0,1.66803936]
[1736904179640,0.00085404,97199.0,97198.0,1.67603936]
[1736904179840,0.00085404,97199.0,97198.0,1.66703936]
[1736904180231,0.00085404,97199.0,97198.0,1.66803936]
[1736904180410,0.00085404,97199.0,97198.0,1.67603936]
[1736904180925,0.00085404,97199.0,97198.0,1.53903733]
[1736904181648,0.00085404,97199.0,97198.0,1.51603733]
[1736904181828,0.00085404,97199.0,97198.0,1.32434366]
[1736904182003,0.00085404,97199.0,97198.0,1.50701303]
[1736904182207,0.00085404,97199.0,97198.0,1.6987067]
[1736904182533,0.00085404,97199.0,97198.0,1.33705565]
[1736904182737,0.07975404,97199.0,97198.0,0.88770359]
[1736904182867,0.07975404,97199.0,97198.0,0.70503422]
[1736904183560,0.07975404,97199.0,97198.0,0.69703422]
[1736904183731,0.07975404,97199.0,97198.0,0.79572789]
[1736904183981,0.07975404,97199.0,97198.0,0.78672789]
[1736904184188,0.07975404,97199.0,97198.0,0.69503422]
[1736904184364,0.07975404,97199.0,97198.0,0.69703422]
[1736904184507,0.07975404,97199.0,97198.0,0.69503422]
[1736904184904,0.07975404,97199.0,97198.0,0.79572789]
[1736904185128,0.07975404,97199.0,97198.0,0.69503422]
[1736904185695,0.07975404,97199.0,97198.0,0.70403422]
[1736904186051,0.07975404,97199.0,97198.0,0.69703422]
[1736904186254,0.07975404,97199.0,97198.0,0.78872789]
[1736904186456,0.07975404,97199.0,97198.0,0.79372789]
[1736904187063,0.00085404,97199.0,97198.0,0.79372789]
[1736904187471,0.00085404,97199.0,97198.0,0.70203422]
[1736904189475,0.00085404,97199.0,97198.0,0.79372789]
[1736904190252,0.00085404,97199.0,97198.0,0.70203422]
[1736904190868,0.00085404,97199.0,97198.0,0.70382552]
[1736904192203,0.00085404,97199.0,97198.0,0.79551919]
[1736904192413,0.00085404,97199.0,97198.0,0.70382552]
[1736904192641,0.00085404,97199.0,97198.0,0.79551919]
[1736904193398,0.00085404,97199.0,97198.0,0.70382552]
[1736904194732,0.00085404,97199.0,97198.0,0.79551919]
[1736904213807,0.00085404,97199.0,97198.0,0.87281919]
[1736904214013,0.0763,97220.0,97219.0,0.36680697]
[1736904214214,0.0763,97220.0,97219.0,0.47103389]
[1736904215182,0.0763,97220.0,97219.0,0.47118245]
[1736904215820,0.0763,97220.0,97219.0,0.47318245]
[1736904216838,0.0763,97220.0,97219.0,0.47918245]
[1736904217238,0.0763,97220.0,97219.0,0.47718245]
[1736904217398,0.0763,97220.0,97219.0,0.47918245]
[1736904217595,0.0763,97220.0,97219.0,0.16923453]
[1736904218003,0.0763,97220.0,97219.0,0.07754086]
[1736904218204,0.08754562,97220.0,97219.0,0.07754086]
[1736904218411,0.08754562,97220.0,97219.0,0.00614856]
[1736904218656,0.08754562,97220.0,97219.0,0.00714856]
[1736904219054,0.08754562,97220.0,97219.0,0.00614856]
[1736904219351,0.08754562,97220.0,97219.0,0.00014856]
[1736904219506,0.08754562,97220.0,97219.0,0.00314856]
[1736904219714,0.08754562,97220.0,97219.0,0.00014856]
[1736904219911,0.1288001,97220.0,97219.0,0.00014856]
[1736904220087,0.08754562,97220.0,97219.0,0.09384223]
[1736904220514,0.08754562,97220.0,97219.0,0.09284223]
[1736904220718,0.08754562,97220.0,97219.0,0.09484223]
[1736904221080,0.08754562,97220.0,97219.0,0.09184223]
[1736904222446,0.08754562,97220.0,97219.0,0.09284223]
[1736904223737,0.08754562,97220.0,97219.0,0.09184223]
[1736904224121,0.08754562,97220.0,97219.0,0.09284223]
[1736904224860,0.0763,97220.0,97219.0,0.09284223]
[1736904225079,0.0461,97225.0,97221.0,0.16108597]
[1736904225290,0.0461,97225.0,97223.0,0.0693923]
[1736904225493,0.0461,97225.0,97223.0,0.0647923]
[1736904225698,0.0763,97226.0,97223.0,0.0647923]
[1736904226463,0.0763,97226.0,97221.0,0.15648597]
[1736904226872,0.0763,97226.0,97221.0,0.09169367]
[1736904227068,0.0763,97226.0,97221.0,0.15648597]
[1736904227855,0.0763,97226.0,97222.0,0.0647923]
[1736904228068,0.205712,97223.0,97221.0,0.09269367]
[1736904228808,0.22184616,97223.0,97221.0,0.09269367]
[1736904229976,0.22184616,97223.0,97221.0,0.09169367]
[1736904230174,0.22184616,97223.0,97222.0,0.001]
[1736904230377,0.28985065,97223.0,97222.0,0.001]
[1736904230596,0.28985065,97223.0,97221.0,0.09169367]
[1736904232998,0.22184616,97223.0,97221.0,0.09169367]
[1736904237844,0.22184616,97223.0,97221.0,0.09348455]
[1736904245013,0.22184616,97223.0,97215.0,0.05842541]
[1736904245309,0.22184616,97223.0,97215.0,0.05857404]
[1736904245919,0.22184616,97223.0,97221.0,0.001]
[1736904246136,0.30524039,97223.0,97215.0,0.05857404]
[1736904246364,0.28910623,97223.0,97215.0,0.05857404]
[1736904246536,0.28910623,97223.0,97215.0,0.05957404]
[1736904246742,0.28910623,97223.0,97215.0,0.05857404]
[1736904247044,0.00179215,97224.0,97215.0,0.05857404]
[1736904247264,0.00179215,97224.0,97223.0,0.05842541]
[1736904249286,0.00179215,97224.0,97223.0,0.05942541]
[1736904249489,0.01792517,97224.0,97223.0,0.05942541]
[1736904251467,0.01792517,97224.0,97223.0,0.16365233]
[1736904251630,0.01792517,97224.0,97223.0,0.60703914]
[1736904251830,0.01792517,97224.0,97223.0,0.65351075]
[1736904252035,0.00179215,97224.0,97223.0,0.65351075]
[1736904252450,0.00179215,97224.0,97223.0,0.66457127]
[1736904252651,0.00179215,97224.0,97223.0,0.61568921]
[1736904253042,0.00179215,97224.0,97223.0,0.8094082]
[1736904253253,0.00179215,97224.0,97223.0,0.8004082]
[1736904253641,0.00179215,97224.0,97223.0,0.8144082]
[1736904254061,0.00179215,97224.0,97223.0,0.8094082]
[1736904254508,0.00179215,97224.0,97223.0,0.62468921]
[1736904255438,0.00179215,97224.0,97223.0,0.60882233]
[1736904256104,0.00179215,97224.0,97223.0,0.60382233]
[1736904256315,0.00179215,97224.0,97223.0,0.59482233]
[1736904256521,0.00179215,97224.0,97223.0,0.59982233]
[1736904256707,0.00179215,97224.0,97223.0,0.60882233]
[1736904257176,0.00179215,97224.0,97223.0,0.55039692]
[1736904257389,0.00179215,97224.0,97223.0,0.60882233]
[1736904259073,0.00179215,97224.0,97223.0,0.55039692]
[1736904259276,0.00179215,97224.0,97223.0,0.60882233]
[1736904262744,0.00179215,97224.0,97223.0,0.75882233]
[1736904262893,0.00179215,97224.0,97223.0,0.63522233]
[1736904273447,0.00179215,97224.0,97223.0,0.73522233]
[1736904273650,0.00179215,97224.0,97223.0,0.81252233]
[1736904274067,0.00179215,97224.0,97223.0,0.80752233]
[1736904274585,0.00179215,97224.0,97223.0,0.81824773]
[1736904274787,0.00179215,97224.0,97223.0,0.82324773]
[1736904274988,0.00179215,97224.0,97223.0,0.81424773]
[1736904275409,0.00179215,97224.0,97223.0,0.81824773]
[1736904275762,0.00179215,97224.0,97223.0,0.81524773]
[1736904276017,0.00179215,97224.0,97223.0,0.82424773]
[1736904277046,0.00179215,97224.0,97223.0,0.81352233]
[1736904279221,0.00179215,97224.0,97223.0,0.80452233]
[1736904279597,0.00179215,97224.0,97223.0,0.81352233]
[1736904280370,0.00179215,97224.0,97223.0,0.80752233]
[1736904280777,0.00179215,97224.0,97223.0,0.81352233]
[1736904281190,0.00179215,97224.0,97223.0,0.80752233]
[1736904281396,0.00179215,97224.0,97223.0,0.79852233]
[1736904281553,0.00179215,97224.0,97223.0,0.80752233]
[1736904281751,0.00179215,97224.0,97223.0,0.81252233]
[1736904281998,0.00179215,97224.0,97223.0,0.80352233]
[1736904282256,0.00179215,97224.0,97223.0,0.81252233]
[1736904283096,0.00179215,97224.0,97223.0,0.80352233]
[1736904283505,0.00179215,97224.0,97223.0,0.79852233]
[1736904283699,0.00179215,97224.0,97223.0,0.80352233]
[1736904284559,0.00179215,97224.0,97223.0,0.81252233]
[1736904286929,0.00179215,97224.0,97223.0,0.71252233]
[1736904287136,0.00179215,97224.0,97223.0,0.63522233]
[1736904287355,0.00179215,97224.0,97223.0,0.63022233]
[1736904287731,0.00179215,97224.0,97223.0,0.63522233]
[1736904288160,0.00179215,97224.0,97223.0,0.62622233]
[1736904288299,0.00179215,97224.0,97223.0,0.63522233]
[1736904289235,0.00179215,97224.0,97223.0,0.62622233]
[1736904289691,0.00179215,97224.0,97223.0,0.63522233]
[1736904289918,0.00179215,97224.0,97223.0,0.73522233]
[1736904290094,0.00179215,97224.0,97223.0,0.73022233]
[1736904290509,0.00179215,97224.0,97223.0,0.8274003]
[1736904290712,0.00179215,97224.0,97223.0,0.7274003]
[1736904290923,0.00179215,97224.0,97223.0,0.8274003]
[1736904291720,0.00179215,97224.0,97223.0,0.87350059]
[1736904292721,0.00179215,97224.0,97223.0,0.73522233]
[1736904293528,0.00179215,97224.0,97223.0,0.76723684]
[1736904293968,0.00179215,97224.0,97223.0,0.76223684]
[1736904294163,0.00179215,97224.0,97223.0,0.73522233]
[1736904294367,0.00179215,97224.0,97223.0,0.72622233]
[1736904294604,0.00179215,97224.0,97223.0,0.72122233]
[1736904294881,0.00179215,97224.0,97223.0,0.73022233]
[1736904295086,0.00179215,97224.0,97223.0,1.05292233]
[1736904295299,0.00179215,97224.0,97223.0,1.06192233]
[1736904302983,0.0004,97239.0,97238.0,0.30842541]
[1736904303180,0.0004,97239.0,97238.0,1.18567948]
[1736904304432,0.0004,97239.0,97238.0,1.19467948]
[1736904305067,0.0004,97239.0,97238.0,1.20550193]
[1736904305207,0.0004,97239.0,97238.0,1.19650193]
[1736904305429,0.0004,97239.0,97238.0,1.20550193]
[1736904305636,0.00179277,97248.0,97247.0,0.69358641]
[1736904305836,7.7e-07,97248.0,97247.0,1.18563048]
[1736904306041,7.7e-07,97248.0,97247.0,2.08485048]
[1736904306920,7.7e-07,97248.0,97247.0,2.08499911]
[1736904307117,7.7e-07,97248.0,97247.0,2.2140625]
[1736904307434,7.7e-07,97248.0,97247.0,2.2230625]
[1736904307671,7.7e-07,97248.0,97247.0,2.2320625]
[1736904308454,7.7e-07,97248.0,97247.0,2.64020157]
[1736904309354,7.7e-07,97248.0,97247.0,2.2320625]
[1736904310364,0.0004,97279.0,97278.0,0.51402141]
[1736904310524,0.0004,97279.0,97278.0,0.92663833]
[1736904311724,0.0004,97279.0,97278.0,0.92678696]
[1736904311921,0.0004,97279.0,97278.0,0.93578696]
[1736904312046,0.0004,97279.0,97278.0,0.95681263]
[1736904312995,0.0004,97279.0,97278.0,0.9736672]
[1736904313193,0.0004,97279.0,97278.0,0.9646672]
[1736904313714,0.0004,97279.0,97278.0,0.9676672]
[1736904313968,0.0004,97279.0,97278.0,0.9736672]
[1736904314143,0.0004,97279.0,97278.0,0.9646672]
[1736904314303,0.0004,97279.0,97278.0,0.9676672]
[1736904314705,0.0004,97279.0,97278.0,0.9736672]
[1736904314931,0.00036,97279.0,97278.0,0.9646672]
[1736904316032,0.00036,97279.0,97278.0,1.2903672]
[1736904316635,0.00036,97279.0,97278.0,1.17951263]
[1736904316834,0.00036,97279.0,97278.0,1.18851263]
[1736904317661,0.00036,97279.0,97278.0,1.18251263]
[1736904318177,0.00036,97279.0,97278.0,1.17651263]
[1736904318632,0.00036,97279.0,97278.0,1.03451263]
[1736904318833,0.00036,97279.0,97278.0,1.02651263]
[1736904319338,0.00036,97279.0,97278.0,1.02351263]
[1736904319715,0.00036,97279.0,97278.0,0.79689096]
[1736904320236,0.00036,97279.0,97278.0,0.80889096]
[1736904320622,0.01648415,97279.0,97278.0,0.79689096]
[1736904321031,0.01648415,97279.0,97278.0,0.80889096]
[1736904321469,0.00036,97279.0,97278.0,0.80889096]
[1736904321810,0.00036,97279.0,97278.0,0.79989096]
[1736904321995,0.00036,97279.0,97278.0,0.47598268]
[1736904322196,0.00036,97279.0,97278.0,0.48398268]
[1736904322426,0.00036,97279.0,97278.0,0.48098268]
[1736904322628,0.00036,97279.0,97278.0,0.48398268]
[1736904323423,0.00036,97279.0,97278.0,0.47598268]
[1736904323620,0.00036,97279.0,97278.0,0.48198268]
[1736904323825,0.00036,97279.0,97278.0,0.48498268]
[1736904324038,0.00036,97279.0,97278.0,0.47598268]
[1736904324237,0.00036,97279.0,97278.0,0.48398268]
[1736904324641,0.00036,97279.0,97278.0,0.47598268]
[1736904324814,0.00036,97279.0,97278.0,0.63498268]
[1736904325433,0.00036,97279.0,97278.0,0.63198268]
[1736904325876,0.00036,97279.0,97278.0,0.63498268]
[1736904326250,0.00036,97279.0,97278.0,0.63198268]
[1736904326492,0.00036,97279.0,97278.0,0.62298268]
[1736904326691,0.00036,97279.0,97278.0,0.63598268]
[1736904326937,0.00036,97279.0,97278.0,0.62798268]
[1736904327128,0.00036,97279.0,97278.0,0.62298268]
[1736904327291,0.00036,97279.0,97278.0,0.63198268]
[1736904327498,0.00036,97279.0,97278.0,0.63698268]
[1736904328201,0.00036,97279.0,97278.0,0.62798268]
[1736904328402,0.00036,97279.0,97278.0,0.63698268]
[1736904328620,0.01648313,97279.0,97278.0,0.96268268]
[1736904328832,0.01648313,97279.0,97278.0,0.95768268]
[1736904328833,1.3e-07,97279.0,97278.0,0.95768268]
[1736904329036,0.0008537,97287.0,97286.0,0.30842541]
[1736904329211,0.0008537,97287.0,97286.0,0.72102233]
[1736904330726,0.0008537,97287.0,97286.0,0.73002233]
[1736904331172,0.0008537,97287.0,97286.0,0.75079045]
[1736904331850,0.0008537,97287.0,97286.0,0.75679045]
[1736904332879,0.0008537,97287.0,97286.0,0.76737744]
[1736904333948,0.0008537,97287.0,97286.0,1.09307744]
[1736904334799,0.0008537,97287.0,97286.0,1.17357744]
[1736904335922,0.0008531,97318.0,97296.0,0.81462541]
[1736904336151,0.0008531,97318.0,97317.0,0.05842541]
[1736904336360,0.0008531,97318.0,97317.0,0.69727787]
[1736904337405,0.00134956,97318.0,97317.0,0.69727787]
[1736904337863,0.00134956,97318.0,97317.0,0.70527787]
[1736904339116,0.00134956,97318.0,97317.0,0.70827787]
[1736904350008,0.00134956,97318.0,97317.0,0.48192233]
[1736904361315,0.00134956,97318.0,97317.0,0.63192233]
[1736904362204,0.00134956,97318.0,97317.0,0.62892233]
[1736904362406,0.00134956,97318.0,97317.0,0.63192233]
[1736904362842,0.00134956,97318.0,97317.0,0.62892233]
[1736904363070,0.00134956,97318.0,97317.0,0.62092233]
[1736904363268,0.00134956,97318.0,97317.0,0.63492233]
[1736904363833,0.00134956,97318.0,97317.0,0.62692233]
[1736904364433,0.00134956,97318.0,97317.0,0.63592233]
[1736904364677,0.00134956,97318.0,97317.0,0.64642735]
[1736904365692,0.00134956,97318.0,97317.0,0.74642735]
[1736904366044,0.00134956,97318.0,97317.0,0.73592233]
[1736904367907,0.04405566,97340.0,97318.0,0.15]
[1736904368110,0.04405566,97340.0,97339.0,0.05842541]
[1736904368317,0.0145439,97344.0,97343.0,0.05842541]
[1736904368532,0.0145439,97344.0,97343.0,0.17891756]
[1736904370285,0.0145439,97344.0,97343.0,0.18291756]
[1736904370859,0.0145439,97344.0,97343.0,0.38837656]
[1736904371681,0.0145439,97344.0,97343.0,0.39037656]
[1736904372117,0.0145439,97344.0,97343.0,0.69856656]
[1736904375405,0.0145439,97344.0,97343.0,0.69456656]
[1736904375834,0.0145439,97344.0,97343.0,0.70156656]
[1736904376052,0.03065698,97344.0,97343.0,0.70156656]
[1736904376662,0.03065698,97344.0,97343.0,0.69256656]
[1736904376839,0.03050154,97344.0,97343.0,0.69256656]
[1736904377044,0.03050154,97344.0,97343.0,0.70156656]
[1736904377256,0.03050154,97344.0,97343.0,0.70356656]
[1736904377656,0.03050154,97344.0,97343.0,0.70156656]
[1736904378117,0.03050154,97344.0,97343.0,0.70556656]
[1736904379130,0.03050154,97344.0,97343.0,0.50010756]
[1736904381709,0.01438846,97344.0,97343.0,0.48384233]
[1736904381916,0.01438846,97344.0,97343.0,0.32119]
[1736904381917,0.09148846,97344.0,97343.0,0.32119]
[1736904382127,0.11448846,97344.0,97343.0,0.32298046]
[1736904382348,0.12576587,97344.0,97343.0,0.32298046]
[1736904382760,0.12576587,97344.0,97343.0,0.31398046]
[1736904383578,0.17106587,97344.0,97343.0,0.00179046]
[1736904383795,0.17106587,97344.0,97343.0,0.00679046]
[1736904384208,0.17106587,97344.0,97343.0,0.00579046]
[1736904385173,0.17106587,97344.0,97343.0,0.00179046]
[1736904385378,0.18718074,97344.0,97343.0,0.00179046]
[1736904385576,0.18818074,97344.0,97343.0,0.00179046]
[1736904385780,0.18718074,97344.0,97343.0,0.00179046]
[1736904385960,0.17106587,97344.0,97343.0,0.00179046]
[1736904386158,0.18818167,97344.0,97343.0,0.00179046]
[1736904386358,0.33818167,97344.0,97343.0,0.00179046]
[1736904386561,0.33718167,97344.0,97343.0,0.00179046]
[1736904386740,0.33818167,97344.0,97343.0,0.00179046]
[1736904387142,0.33718167,97344.0,97343.0,0.00179046]
[1736904391011,0.41845587,97344.0,97343.0,0.00179046]
[1736904391214,0.04157459,97336.0,97318.0,0.00014863]
[1736904391520,0.350909,97319.0,97318.0,0.00014863]
[1736904391759,0.356829,97319.0,97318.0,0.00014863]
[1736904391965,0.205549,97300.0,97286.0,0.09142858]
[1736904392181,0.327954,97298.0,97297.0,0.00228797]
[1736904392415,0.350954,97298.0,97297.0,0.00228797]
[1736904393242,0.023,97297.0,97278.0,0.00179172]
[1736904393485,0.378592,97280.0,97278.0,0.00179172]
[1736904393710,0.023,97273.0,97256.0,0.05842541]
[1736904393950,0.20564,97257.0,97256.0,0.05842541]
[1736904394358,0.205636,97260.0,97256.0,0.05842541]
[1736904394971,0.00592,97261.0,97257.0,0.05842541]
[1736904395173,0.00592,97261.0,97257.0,0.05857409]
[1736904395748,0.00592,97261.0,97260.0,0.05842541]
[1736904396940,0.205626,97264.0,97260.0,0.05842541]
[1736904396941,0.00592,97263.0,97260.0,0.05842541]
[1736904397250,0.00592,97263.0,97260.0,0.06042541]
[1736904397892,0.00592,97263.0,97261.0,0.10422692]
[1736904398220,0.205626,97264.0,97262.0,0.05842541]
[1736904398422,0.00592,97275.0,97269.0,0.05842541]
[1736904398629,0.205595,97279.0,97269.0,0.16265233]
[1736904398829,0.00592,97275.0,97269.0,0.16265233]
[1736904399038,0.00592,97275.0,97260.0,0.002]
[1736904399039,0.24432307,97290.0,97276.0,0.05842541]
[1736904399232,0.24432307,97290.0,97262.0,0.20563]
[1736904399233,0.08302,97290.0,97280.0,0.05842541]
[1736904399435,0.20494307,97290.0,97281.0,0.16265233]
[1736904399887,0.00592,97290.0,97283.0,0.05842541]
[1736904400042,0.00592,97290.0,97284.0,0.16265233]
[1736904400249,0.01612383,97288.0,97285.0,0.05842541]
[1736904400452,0.01612383,97288.0,97287.0,0.05842541]
[1736904400659,0.205566,97292.0,97288.0,0.05842541]
[1736904400934,0.205566,97292.0,97289.0,0.10422692]
[1736904401711,0.20606255,97292.0,97289.0,0.10422692]
[1736904402280,0.20606255,97292.0,97289.0,0.10822692]
[1736904403091,0.20606255,97292.0,97289.0,0.10922692]
[1736904403639,0.41162855,97292.0,97289.0,0.10922692]
[1736904404454,0.41162855,97292.0,97289.0,0.10822692]
[1736904404655,0.41162855,97292.0,97289.0,0.10522692]
[1736904405050,0.41162855,97292.0,97289.0,0.10922692]
[1736904405261,0.41162855,97292.0,97289.0,0.10522692]
[1736904405702,0.41162855,97292.0,97289.0,0.10922692]
[1736904406205,0.41162855,97292.0,97289.0,0.11001801]
[1736904406414,0.41162855,97292.0,97289.0,0.11101801]